[Event "34th GER-ch Seniors-65 2022"]
[Site "Magdeburg"]
[Date "2022.08.13"]
[Round "2.7"]
[White "Bischoff, Ulrich"]
[Black "Rahls, Peter"]
[Result "1/2-1/2"]
[ECO "D11"]
[WhiteElo "1978"]
[BlackElo "2223"]
[Annotator "TA"]
[PlyCount "92"]
[EventDate "2022.08.12"]
[EventType "swiss"]
[EventCountry "GER"]
[SourceTitle "playchess.com"]
[Source "ChessBase"]
[SourceQuality "1"]
[TimeControl "40/5400+30:1800+30"]

{[%evp 9,92,20,45,45,45,41,48,-10,51,8,20,-2,12,1,80,70,140,137,163,155,161,148,155,155,155,153,149,131,151,153,162,140,150,119,183,154,158,148,162,169,204,219,207,214,233,219,262,75,195,191,177,116,119,102,137,127,116,121,94,22,33,18,289,296,286,35,35,35,35,31,35,39,105,0,46,50,66,0,52,50,63,52,60,61,76]} 1. d4 {[%emt 0:00:03]} d5 {[%emt 0:00:14]} 2. c4 {[%emt 0:00:09]} c6 {[%emt 0:00:08]} 3. Nf3 {[%emt 0:00:06]} Nf6 {[%emt 0:00:09]} 4. g3 {[%emt 0:00:11]} a6 {[%emt 0:00:24]} 5. Bg2 {[%emt 0:01:13]} e6 {[%emt 0:01:16]} (5... dxc4 {is interesting.} 6. Ne5 b5 7. b3 cxb3 8. axb3 Bb7) 6. O-O {[%emt 0:01:53] D11: Slav Defence: 3 Nf3 sidelines and 3...Nf6 4 e3 Bg4.} Be7 {[%emt 0:02:28]} 7. Nc3 {[%emt 0:05:59][%cal Bb1c3,Bc3b5,Bb5c7][%mdl 32]} O-O {[%emt 0:00:25]} 8. Bf4 {[%emt 0:02:57]} (8. b3 $14) 8... Nbd7 {[%emt 0:00:48]} (8... dxc4 $11 9. Ne5 b5) 9. a4 {[%emt 0:05:22]} a5 {[%emt 0:01:19]} 10. Rc1 {[%emt 0:10:40] [#]} Re8 $146 {[%emt 0:00:39]} ({Predecessor:} 10... Nb6 11. Ne5 Nh5 12. c5 Nxf4 13. gxf4 Nd7 14. Qd2 {½-½ (15) Wells,P (2526)-Speelman,J (2524) London 2008}) 11. cxd5 {[%emt 0:05:18]} exd5 {[%emt 0:00:51]} (11... Nxd5 $11 12. Qb3 Nxf4 13. gxf4 Qb6) 12. Nb5 $1 $16 {[%emt 0:00:58]} Bb4 {[%emt 0:08:11]} (12... cxb5 $2 13. Bc7 $18) (12... Nf8 $14) 13. Nc7 $36 {[%emt 0:01:17][%mdl 2048] White is really pushing.} Ra7 {[%emt 0:00:33]} 14. Nxe8 {[%emt 0:02:35]} Qxe8 {[%emt 0:00:04]} 15. Ne1 {[%emt 0:09:14]} Nf8 {[%emt 0:06:25]} 16. Nd3 {[%emt 0:15:07]} Ne6 {[%emt 0:00:26]} 17. Be5 {[%emt 0:00:56]} Be7 {[%emt 0:00:35]} 18. Nc5 {[%emt 0:10:52]} Nxc5 {[%emt 0:01:30]} 19. dxc5 {[%emt 0:05:39]} Bf5 {[%emt 0:06:40]} 20. Qd4 {[%emt 0:02:45]} Ra8 {[%emt 0:01:45]} 21. f3 {[%emt 0:03:16][%cal Bf2f3,Bf3f4][%mdl 32]} Qf8 {[%emt 0:01:05]} (21... Nd7 $16 {was necessary.}) 22. Rfd1 {[%emt 0:02:51]} Nd7 {[%emt 0:00:36][%cal Re7c5]} 23. Bd6 {[%emt 0:00:33]} Bxd6 {[%emt 0:01:02]} 24. cxd6 {[%emt 0:00:01]} Qxd6 {[%emt 0:00:35]} 25. e4 {[%emt 0:00:01]} Be6 {[%emt 0:06:11]} 26. f4 $1 {[%emt 0:00:07]} c5 {[%emt 0:00:33]} 27. Qd3 {[%emt 0:03:37] f5 is the strong threat.} d4 {[%emt 0:00:23]} 28. Qb5 {[%emt 0:00:43]} (28. f5 $1 $18 {[%cal Rf5e6] and the rest is easy.}) 28... f6 {[%emt 0:01:06]} (28... Qc6 $16) 29. e5 $1 $18 {[%emt 0:03:55]} ({Don't play} 29. Qxb7 $6 Rb8 30. e5 fxe5 $16) 29... fxe5 {[%emt 0:02:39]} 30. Qxb7 {[%emt 0:00:23]} ({Better is} 30. fxe5 $18 Qe7 31. Qxb7 (31. Bxb7 Rb8 $16)) 30... Rb8 {[%emt 0:00:33]} 31. Qc6 {[%emt 0:00:03] White is more active.} Rb6 {[%emt 0:05:27]} 32. Qxd6 {[%emt 0:02:04]} Rxd6 {[%emt 0:00:04]} 33. fxe5 {[%emt 0:00:09]} Rb6 {[%emt 0:00:10] [#]} 34. Rd2 {[%emt 0:01:13]} (34. Bf1 $1 $16 {[%cal Rf1b5] Black must now prevent Bb5.} Rxb2 35. Re1) 34... Kf7 $11 {[%emt 0:00:50]} 35. Bf1 {[%emt 0:00:53] Threatens to win with Kf2.} Rb4 $2 {[%emt 0:03:38][%mdl 8192]} (35... Ke7 $1 $11 {and Black stays safe.}) 36. Bb5 $18 {[%emt 0:00:57]} Nxe5 {[%emt 0:00:21] [#] Strongly threatening ...Nf3+.} 37. Rf2+ {[%emt 0:00:12]} ({Only move:} 37. Re2 $1 $18 {[%cal Re2e5]} Nd7 38. Bxd7 Bxd7 39. Rxc5 Bxa4 40. Rf5+ Kg8 41. Rd5) 37... Ke7 $14 {[%emt 0:00:52] And now ...c4 would win.} 38. Rxc5 {[%emt 0:00:15]} Kd6 {[%emt 0:00:31]} 39. Rc1 {[%emt 0:02:40]} d3 {[%emt 0:03:52]} 40. Kf1 {[%emt 0:02:00]} Rd4 {[%emt 0:00:58]} (40... Bg4 $14) 41. Rd2 {[%emt 0:01:49]} (41. Rf4 $16 Rd5 42. Bc4 Nxc4 43. Rfxc4) 41... Bg4 {[%emt 0:08:23]} (41... Bc4 $11) 42. Rc3 {[%emt 0:04:17][%cal Rb5d3]} Be2+ {[%emt 0:02:43]} 43. Rxe2 {[%emt 0:00:37]} (43. Kf2 $14) 43... dxe2+ {[%emt 0:00:10]} ({Black should try} 43... d2 $11 44. Rxe5 d1=Q+ 45. Re1 Qd2) 44. Kxe2 {[%emt 0:00:09] White is slightly better.} h5 {[%emt 0:02:09]} 45. h4 {[%emt 0:01:45]} Re4+ {[%emt 0:05:18]} 46. Re3 {[%emt 0:05:21]} Rb4 {[%emt 0:00:52] Weighted Error Value: White=0.30/Black=0.35} 1/2-1/2

[Event "34th GER-ch Seniors-65 2022"]
[Site "Magdeburg"]
[Date "2022.08.13"]
[Round "2.8"]
[White "Brettschneider, Karl"]
[Black "Schulz, Michael"]
[Result "0-1"]
[ECO "A29"]
[WhiteElo "1949"]
[BlackElo "2217"]
[Annotator "TA"]
[PlyCount "54"]
[EventDate "2022.08.12"]
[EventType "swiss"]
[EventCountry "GER"]
[SourceTitle "playchess.com"]
[Source "ChessBase"]
[SourceQuality "1"]
[TimeControl "40/5400+30:1800+30"]

{[%evp 18,54,0,-43,-43,-60,-55,-47,-62,-53,-56,-77,-71,-69,-60,-62,-34,-39,-23,-68,-63,-120,-129,-144,-125,-134,-79,-68,-72,-1007,-979,-1681,-1569,-29994,-29995,-29995,-29996,-29996,-29997]} 1. c4 {[%emt 0:00:07]} e5 {[%emt 0:00:08]} 2. Nc3 {[%emt 0:01:21]} Nf6 {[%emt 0:00:05]} 3. g3 {[%emt 0:01:54]} d5 {[%emt 0:00:05]} 4. cxd5 {[%emt 0:00:20]} Nxd5 {[%emt 0:00:05]} 5. Bg2 {[%emt 0:00:15]} Nb6 {[%emt 0:00:04]} 6. Nf3 {[%emt 0:01:42]} Nc6 {[%emt 0:00:04]} 7. d3 {[%emt 0:02:16]} Be7 {[%emt 0:00:05]} 8. O-O {[%emt 0:00:43]} O-O {[%emt 0:00:04]} 9. Nd2 {[%emt 0:05:43]} Be6 {[%emt 0:00:32]} 10. b3 {[%emt 0:01:15]} Qd7 {[%emt 0:00:19] A29: English Opening: Four Knights Variation with 4 g3.} 11. Nc4 {[%emt 0:01:15]} Rad8 {[%emt 0:01:24]} 12. Bb2 {[%emt 0:05:27]} Bh3 {[%emt 0:00:14] Black is slightly better.} 13. Nxb6 {[%emt 0:05:15]} axb6 {[%emt 0:00:51]} 14. Nd5 {[%emt 0:03:24] [#]} Bxg2 $146 {[%emt 0:02:31]} ({Predecessor:} 14... Bc5 15. Bxh3 Qxh3 16. Nxc7 Rd6 17. Bc1 Nd4 18. a4 Rfd8 19. Be3 Nf5 20. Qd2 Rg6 21. Bxc5 Rh6 22. Qxh6 Nxh6 {0-1 (22) Brettschneider,K (2025)-Knaak,J (2144) Magdeburg 2020}) 15. Nxe7+ {[%emt 0:00:13]} Qxe7 {[%emt 0:00:04]} 16. Kxg2 {[%emt 0:00:24]} f5 {[%emt 0:00:07][%cal Bf7f5,Bf5f4][%mdl 32]} 17. Qc2 {[%emt 0:04:31]} f4 {[%emt 0:06:12]} 18. f3 {[%emt 0:08:17]} Nd4 {[%emt 0:08:23]} 19. Qd2 {[%emt 0:07:18]} (19. Bxd4 $15 exd4 20. gxf4) 19... Nf5 $17 {[%emt 0:01:56] Hoping for ...Rd6. Black is much more active.} 20. Rg1 {[%emt 0:05:58]} fxg3 {[%emt 0:08:38]} 21. hxg3 {[%emt 0:01:24] [#]} e4 {[%emt 0:00:40]} ({Black should play} 21... Rd6 $1 {[%cal Oe5e4] Threatens to win with ...e4!} 22. Raf1 Rg6) 22. fxe4 {[%emt 0:05:00]} Qxe4+ {[%emt 0:00:38][%mdl 64] Pin} 23. Kh3 $2 {[%emt 0:11:07][%mdl 8192] White does not recover from this.} (23. dxe4 $17 Rxd2 24. Be5) 23... Qe6 $19 {[%emt 0:03:06]} ({And not} 23... Ne3 24. dxe4 Rxd2 25. Be5 $17) 24. g4 {[%emt 0:02:11]} Ne3 {[%emt 0:02:09] ( -> ...Qh6+)} 25. Bc1 {[%emt 0:05:01]} Qh6+ {[%emt 0:02:21] Black mates.} 26. Kg3 {[%emt 0:00:07]} Qd6+ {[%emt 0:02:17]} 27. Kh3 {[%emt 0:01:02] [#]} Rf2 $1 {[%emt 0:00:56] Weighted Error Value: White=1.09/Black=0.06 (flawless)} 0-1

[Event "34th GER-ch Seniors-65 2022"]
[Site "Magdeburg"]
[Date "2022.08.13"]
[Round "2.9"]
[White "Boost, Juergen"]
[Black "Vatter, Hans-Joachim"]
[Result "0-1"]
[ECO "C16"]
[WhiteElo "1948"]
[BlackElo "2186"]
[Annotator "TA"]
[PlyCount "80"]
[EventDate "2022.08.12"]
[EventType "swiss"]
[EventCountry "GER"]
[SourceTitle "playchess.com"]
[Source "ChessBase"]
[SourceQuality "1"]
[TimeControl "40/5400+30:1800+30"]

{[%evp 12,80,50,-6,0,0,0,0,0,0,0,0,0,0,0,0,27,11,0,-15,-22,-38,-32,-43,-32,-40,-31,-45,-22,-23,-11,-28,12,0,16,16,70,-91,-70,-87,-84,-84,-84,-84,-78,-95,-86,-100,-83,-171,-175,-175,-159,-258,-179,-176,-168,-283,-159,-337,-331,-328,-316,-287,-287,-1102,-1099,-1018,-454,-2251,-1979]} 1. e4 {[%emt 0:00:10]} e6 {[%emt 0:00:09]} 2. d4 {[%emt 0:00:10]} d5 {[%emt 0:00:02]} 3. Nc3 {[%emt 0:00:08]} Bb4 {[%emt 0:00:43]} 4. e5 {[%emt 0:00:18]} b6 {[%emt 0:00:41]} 5. a3 {[%emt 0:02:37]} Bxc3+ {[%emt 0:00:59]} 6. bxc3 {[%emt 0:00:08]} Qd7 {[%emt 0:00:08]} 7. Nf3 {[%emt 0:04:27]} (7. Qg4 $14 Kf8 8. a4) 7... Ne7 {[%emt 0:03:57] C16: French: 3 Nc3 Bb4 4 e5: Lines without ...c5.} 8. a4 {[%emt 0:04:13]} Ba6 {[%emt 0:01:04]} 9. Bxa6 {[%emt 0:01:00]} Nxa6 {[%emt 0:00:02] The position is equal.} 10. Qd3 {[%emt 0:02:15]} Nb8 {[%emt 0:00:09][%cal Ba6b8,Bb8c6,Bc6a5][%mdl 32]} 11. O-O {[%emt 0:00:33]} Nbc6 {[%emt 0:01:08]} 12. Ba3 {[%emt 0:02:14]} Na5 {[%emt 0:04:12]} 13. Nd2 {[%emt 0:13:15]} h5 {[%emt 0:13:39] [#]} 14. Rfd1 $146 {[%emt 0:18:38]} ({Predecessor:} 14. Bb4 Nb7 15. Bxe7 Kxe7 16. f4 g6 17. Qg3 Kf8 18. Nf3 c5 19. a5 Nxa5 20. dxc5 {0-1 (44) Laursen,N (2245)-Sloth,J (2337) Middelfart 2012}) 14... Qc6 {[%emt 0:03:44]} 15. Qb5 {[%emt 0:07:22]} a6 {[%emt 0:02:54]} 16. Qxc6+ {[%emt 0:04:08]} Nexc6 {[%emt 0:00:24] Pair of Knights!} 17. Bb4 {[%emt 0:06:28]} Kd7 {[%emt 0:01:26]} 18. Bxa5 {[%emt 0:01:37]} Nxa5 {[%emt 0:00:52]} 19. Kf1 {[%emt 0:00:45]} Rhb8 {[%emt 0:01:53]} 20. Ke2 {[%emt 0:00:50]} Ra7 {[%emt 0:21:02]} (20... Kc6 {with more complications.} 21. Kd3 b5 22. Rdb1 Nc4) 21. Kd3 {[%emt 0:09:20]} b5 {[%emt 0:01:41]} 22. Nb3 {[%emt 0:07:11]} Nxb3 {[%emt 0:01:30]} 23. cxb3 {[%emt 0:00:07]} bxa4 {[%emt 0:00:08]} (23... Raa8 $11) 24. bxa4 $2 $11 {[%emt 0:00:14][%mdl 4096] Endgame KRR-KRR} (24. b4 $14) 24... Rab7 $17 {[%emt 0:00:24]} 25. Rd2 {[%emt 0:01:15]} Rb2 {[%emt 0:02:32]} 26. Ra2 {[%emt 0:03:01]} Rb1 {[%emt 0:00:12]} 27. h4 {[%emt 0:01:21]} f6 {[%emt 0:03:53]} 28. exf6 {[%emt 0:02:55]} gxf6 {[%emt 0:00:03]} 29. g3 {[%emt 0:01:05]} c5 {[%emt 0:00:38] Black is more active.} 30. Rdc2 {[%emt 0:02:11]} (30. dxc5 $17 e5 31. f3) 30... Kd6 $19 {[%emt 0:04:18]} 31. Re2 {[%emt 0:03:55]} cxd4 {[%emt 0:03:04]} 32. Kxd4 {[%emt 0:00:31]} (32. cxd4 $17 R1b3+ 33. Kc2) 32... R8b3 {[%emt 0:00:47]} 33. Kd3 {[%emt 0:00:32]} e5 {[%emt 0:00:18]} 34. Kc2 {[%emt 0:00:16] [#]} (34. a5 {keeps fighting.}) 34... Kc5 {[%emt 0:01:16]} (34... a5 $1 $19 35. Re1 Rxe1 36. Kxb3 e4) 35. Re3 $2 {[%emt 0:00:24] [#] Now White is beyond hope.} (35. a5 $17) 35... e4 $1 {[%emt 0:01:24]} 36. f3 {[%emt 0:00:19]} ({Weaker is} 36. Re1 Rxe1 37. Kxb3 f5 $19) 36... f5 {[%emt 0:00:02] Threatens to win with ...Kc4.} 37. fxe4 {[%emt 0:00:41]} fxe4 {[%emt 0:00:19]} 38. g4 $2 {[%emt 0:00:19]} (38. Re2) 38... hxg4 {[%emt 0:00:30] Black is clearly winning.} 39. h5 {[%emt 0:00:05]} Kc4 {[%emt 0:01:20]} (39... Rb7 $142 40. Kd2 Rh1) 40. Rg3 {[%emt 0:01:02]} (40. a5 $142) 40... Rh1 {[%emt 0:00:11] Weighted Error Value: White=0.68/Black=0.28 (precise)} 0-1

[Event "34th GER-ch Seniors-65 2022"]
[Site "Magdeburg"]
[Date "2022.08.13"]
[Round "2.10"]
[White "Koehler, Gerhard"]
[Black "Kaiser, Sebastian"]
[Result "1-0"]
[ECO "A11"]
[WhiteElo "2184"]
[BlackElo "1943"]
[Annotator "TA"]
[PlyCount "81"]
[EventDate "2022.08.12"]
[EventType "swiss"]
[EventCountry "GER"]
[SourceTitle "playchess.com"]
[Source "ChessBase"]
[SourceQuality "1"]
[TimeControl "40/5400+30:1800+30"]

{[%evp 10,81,7,4,26,30,30,22,29,30,42,52,54,49,93,81,91,62,91,83,90,74,70,66,58,64,237,230,258,260,260,275,318,323,335,316,316,316,318,301,369,354,352,352,377,345,386,377,381,381,381,393,385,378,412,477,470,477,469,459,475,466,618,614,721,769,769,745,760,743,1110,1106,1889,1722]} 1. c4 {[%emt 0:00:03]} c6 {[%emt 0:00:06]} 2. Nf3 {[%emt 0:00:06]} d5 {[%emt 0:00:08]} 3. e3 {[%emt 0:00:08]} Nf6 {[%emt 0:00:10]} 4. Nc3 {[%emt 0:00:16]} e6 {[%emt 0:00:52]} 5. b3 {[%emt 0:00:32]} Nbd7 {[%emt 0:00:11]} 6. Bb2 {[%emt 0:00:22]} Be7 {[%emt 0:00:08] A11: English Opening: 1...c6.} 7. d4 {[%emt 0:00:25]} O-O {[%emt 0:00:26]} 8. Bd3 {[%emt 0:00:36]} dxc4 {[%emt 0:00:37] The position is equal.} 9. bxc4 {[%emt 0:00:46]} b6 {[%emt 0:00:34]} 10. O-O {[%emt 0:01:22]} Bb7 {[%emt 0:00:03]} 11. e4 {[%emt 0:02:08] [#]} Nh5 $146 {[%emt 0:06:26][%cal Oe6e5]} ({Predecessor:} 11... Ne8 12. Qc2 g6 13. Rad1 Bf6 14. e5 Bg7 15. Be4 Qc7 16. Rfe1 a6 17. Ba3 c5 18. Bxb7 Qxb7 {1-0 (28) Tomljanovic,G (2052)-Trtanj,Z (1935) Croatia 2016}) 12. g3 {[%emt 0:07:51]} (12. e5 {seems wilder.} Nf4 13. Bc2 f6 14. exf6 Bxf6 15. g3) 12... g6 {[%emt 0:01:28]} 13. Re1 {[%emt 0:02:52]} Re8 {[%emt 0:02:24][%cal Oe6e5]} 14. Bf1 {[%emt 0:02:58]} (14. e5 {is interesting.} Bb4 15. Qc2 c5 16. d5) 14... Rb8 {[%emt 0:08:33]} 15. Qa4 {[%emt 0:08:10]} a6 {[%emt 0:01:23]} 16. Rad1 {[%emt 0:00:40]} b5 {[%emt 0:04:20]} 17. Qc2 {[%emt 0:01:57]} Qb6 $2 {[%emt 0:04:46] This move loses the game for Black.} (17... Qc7 $14) 18. c5 $18 {[%emt 0:02:10]} Qc7 {[%emt 0:00:16]} 19. e5 {[%emt 0:00:11]} Ng7 {[%emt 0:13:11]} 20. Ne4 {[%emt 0:00:41]} h5 {[%emt 0:06:57]} 21. Bc1 {[%emt 0:04:08]} Nf5 {[%emt 0:03:08]} 22. Nd6 {[%emt 0:03:39]} Qd8 {[%emt 0:01:50]} 23. Nxe8 {[%emt 0:02:41]} Qxe8 {[%emt 0:00:01]} 24. Bg5 {[%emt 0:00:25]} Bf8 {[%emt 0:00:41]} 25. Bg2 {[%emt 0:00:48]} Bg7 {[%emt 0:01:39]} 26. Bf4 {[%emt 0:10:15]} Ne7 {[%emt 0:01:02]} 27. Ng5 {[%emt 0:00:21][%cal Bf3g5,Bg5e4,Be4d6][%mdl 32]} Nf8 {[%emt 0:01:43]} 28. Ne4 {[%emt 0:00:23] [#] And now Nf6+ would win.} Nd5 {[%emt 0:00:14] Against Nf6+} 29. Bg5 {[%emt 0:01:11]} Nh7 {[%emt 0:01:27]} 30. Nd6 {[%emt 0:01:05]} Qd7 {[%emt 0:00:54]} 31. Bd2 {[%emt 0:01:25]} Qe7 {[%emt 0:04:30]} 32. Bxd5 {[%emt 0:14:02]} exd5 {[%emt 0:01:16] White is clearly winning.} 33. e6 {[%emt 0:00:21]} f5 {[%emt 0:00:53]} 34. Bf4 {[%emt 0:00:24][%cal Od6f5,Bd2f4,Bf4g5,Bg5f6][%mdl 32] [#] Strongly threatening Nxf5!} Rf8 {[%emt 0:02:21]} 35. h4 {[%emt 0:01:23]} ({Don't play} 35. Nxb7 Qxb7 36. h4 Re8 $18) 35... Nf6 {[%emt 0:02:32]} 36. Bg5 {[%emt 0:01:40]} Bc8 {[%emt 0:00:20]} 37. Qd2 {[%emt 0:01:30]} Kh7 {[%emt 0:01:22]} 38. Re2 {[%emt 0:02:00]} Rd8 {[%emt 0:01:52]} 39. Rde1 {[%emt 0:02:06] Threatens to win with Qa5.} Rf8 {[%emt 0:00:31]} 40. Qa5 {[%emt 0:01:16]} Bh6 {[%emt 0:00:37]} 41. Bxf6 {[%emt 0:31:35] Weighted Error Value: White=0.05 (flawless) /Black=0.30} 1-0

[Event "34th GER-ch Seniors-65 2022"]
[Site "Magdeburg"]
[Date "2022.08.13"]
[Round "2.11"]
[White "Schirmer, Werner"]
[Black "Gruzmann, Boris"]
[Result "0-1"]
[ECO "C72"]
[WhiteElo "1947"]
[BlackElo "2173"]
[Annotator "TA"]
[PlyCount "80"]
[EventDate "2022.08.12"]
[EventType "swiss"]
[EventCountry "GER"]
[SourceTitle "playchess.com"]
[Source "ChessBase"]
[SourceQuality "1"]
[TimeControl "40/5400+30:1800+30"]

{[%evp 13,80,46,55,-17,-10,-6,220,-48,-30,-45,-55,-51,-40,-55,-41,-55,-42,-53,-56,-68,-7,-30,-10,-27,-26,-23,-37,-14,-12,-117,15,4,16,0,0,0,0,0,0,0,8,-18,-18,-18,-18,-16,-14,-10,-11,-24,-20,-25,-28,-77,-66,-62,-29,-198,-144,-227,-272,-292,-282,-397,-410,-463,-477,-443,-393]} 1. e4 {[%emt 0:00:03]} e5 {[%emt 0:00:15]} 2. Nf3 {[%emt 0:00:18]} Nc6 {[%emt 0:00:12]} 3. Bb5 {[%emt 0:00:20]} a6 {[%emt 0:00:13]} 4. Ba4 {[%emt 0:00:05]} d6 {[%emt 0:00:17]} 5. O-O {[%emt 0:00:56]} Bg4 {[%emt 0:00:15]} 6. h3 {[%emt 0:00:43]} h5 {[%emt 0:00:14]} 7. Bxc6+ {[%emt 0:00:25]} bxc6 {[%emt 0:00:14]} 8. c3 {[%emt 0:00:29] [#] C72: Ruy Lopez: Deferred Steinitz: 5 0-0.} (8. hxg4 hxg4 9. Re1 gxf3 10. Qxf3 Qh4 $15) ({Better is} 8. d4 $14) 8... Qf6 $1 $11 {[%emt 0:01:08][%cal Oc6c5]} 9. d4 {[%emt 0:02:05]} (9. hxg4 hxg4 10. Re1 (10. Qa4 {gets mated.} Qh6) 10... Rb8 $15) 9... Ne7 $2 {[%emt 0:10:08] [#]} 10. Qd3 $146 {[%emt 0:05:15]} (10. hxg4 $18 hxg4 11. dxe5) ({Predecessor:} 10. dxe5 dxe5 11. hxg4 hxg4 12. Ng5 Qh6 13. f3 Nf5 14. Kf2 Bc5+ 15. Ke2 Ng3+ 16. Ke1 Qh4 17. Qb3 Nxf1+ 18. Kxf1 Qf2# {0-1 (18) Svane,F (2438)-Eugene,F (2343) Chess.com INT 2021}) 10... Bxf3 $15 {[%emt 0:02:22]} 11. Qxf3 {[%emt 0:01:05]} Qxf3 {[%emt 0:00:11]} 12. gxf3 {[%emt 0:00:05]} Ng6 {[%emt 0:04:26]} 13. Be3 {[%emt 0:01:42]} Be7 {[%emt 0:04:50]} 14. Nd2 {[%emt 0:00:54]} O-O {[%emt 0:00:25]} 15. Kh1 {[%emt 0:05:31]} Rab8 {[%emt 0:08:19]} 16. b3 {[%emt 0:01:14]} Bf6 {[%emt 0:02:41]} (16... f5 $15 17. Rg1 Kh7 18. dxe5 Nxe5) 17. Rg1 {[%emt 0:01:34]} exd4 {[%emt 0:01:32]} 18. cxd4 {[%emt 0:01:31]} c5 $1 {[%emt 0:00:30]} 19. e5 $1 {[%emt 0:02:48]} cxd4 {[%emt 0:06:56]} (19... dxe5 {is interesting.} 20. dxe5 Bxe5 21. Rac1 Bd4) 20. exf6 {[%emt 0:01:13]} dxe3 {[%emt 0:00:10]} 21. fxg7 {[%emt 0:01:52] [#]} (21. fxe3 $11 Rfe8 22. e4) 21... Kxg7 {[%emt 0:10:22]} ({Black should play} 21... Rfe8 $1 $17 22. Ne4 exf2) 22. fxe3 $11 {[%emt 0:00:23]} Rfe8 {[%emt 0:07:04]} 23. Ne4 {[%emt 0:05:39]} d5 {[%emt 0:06:33]} 24. Ng3 {[%emt 0:00:24]} h4 {[%emt 0:00:35]} 25. Nh5+ {[%emt 0:20:05]} Kh8 {[%emt 0:00:21]} 26. e4 {[%emt 0:07:59]} Rb6 {[%emt 0:05:04]} 27. Rg5 {[%emt 0:06:24]} ({Not} 27. exd5 $2 Re5 28. Ng3 (28. d6 $2 Rxd6 29. Rac1 Rxh5 $19) 28... hxg3 29. Rxg3 Rxd5 $19) 27... dxe4 {[%emt 0:01:04]} 28. fxe4 {[%emt 0:01:51]} Rxe4 {[%emt 0:01:47]} 29. Rf1 {[%emt 0:00:22]} Re5 {[%emt 0:02:26]} 30. Rxe5 {[%emt 0:02:27]} Nxe5 {[%emt 0:00:09][%mdl 4096] Endgame KRN-KRN} 31. Rf4 {[%emt 0:00:49]} Rb5 {[%emt 0:08:47] ...Ng6 is the strong threat.} 32. Nf6 {[%emt 0:29:59]} Ng6 {[%emt 0:01:02]} 33. Rd4 {[%emt 0:00:00]} (33. Ra4 $11) 33... Rc5 $17 {[%emt 0:04:31]} 34. Rd7 {[%emt 0:00:00]} Ne5 {[%emt 0:00:57]} 35. Rd8+ {[%emt 0:00:00]} (35. Re7 $11) 35... Kg7 {[%emt 0:00:15]} 36. Nh5+ {[%emt 0:00:00]} (36. Ne4 $17 {was worth a try.} Rc1+ 37. Kg2) 36... Kg6 $19 {[%emt 0:00:29]} 37. Nf4+ {[%emt 0:00:00]} Kf5 {[%emt 0:00:13]} 38. Ne2 {[%emt 0:00:00]} (38. Nd3 {was called for.} Nxd3 39. Rxd3) 38... Ke4 {[%emt 0:02:00] Strongly threatening ...Rc2.} 39. Rh8 {[%emt 0:00:00]} Ke3 {[%emt 0:00:50]} 40. Ng1 {[%emt 0:00:00]} Rc1 {[%emt 0:01:46] Weighted Error Value: White=0.50/Black=0.25 (precise)} 0-1

[Event "34th GER-ch Seniors-65 2022"]
[Site "Magdeburg"]
[Date "2022.08.13"]
[Round "2.12"]
[White "Namyslo, Holger"]
[Black "Zimmermann, Manfred"]
[Result "1-0"]
[ECO "B46"]
[WhiteElo "2168"]
[BlackElo "1933"]
[Annotator "RC"]
[PlyCount "101"]
[EventDate "2022.08.12"]
[EventType "swiss"]
[EventCountry "GER"]
[SourceTitle "playchess.com"]
[Source "ChessBase"]
[SourceQuality "1"]
[TimeControl "40/5400+30:1800+30"]

1. e4 {[%emt 0:00:05]} c5 {[%emt 0:00:32]} 2. Nf3 {[%emt 0:00:06]} a6 {[%emt 0:00:12]} 3. Nc3 {[%emt 0:00:23]} e6 {[%emt 0:00:31]} 4. d4 {[%emt 0:00:17]} cxd4 {[%emt 0:00:26]} 5. Nxd4 {[%emt 0:00:08]} Nc6 {[%emt 0:02:05]} 6. Be2 {[%emt 0:00:26]} Nge7 {[%emt 0:01:59]} 7. O-O {[%emt 0:05:33]} Ng6 {[%emt 0:01:57]} 8. Be3 {[%emt 0:01:27]} Be7 {[%emt 0:02:07]} 9. Kh1 {[%emt 0:01:06]} O-O {[%emt 0:02:18]} 10. f4 {[%emt 0:01:51]} f6 {[%emt 0:09:50]} 11. Bh5 {[%emt 0:03:10]} Nxd4 {[%emt 0:06:18]} 12. Qxd4 {[%emt 0:04:48]} f5 {[%emt 0:02:30]} 13. Rad1 {[%emt 0:05:15]} fxe4 {[%emt 1:06:15]} 14. Bxg6 {[%emt 0:01:40]} hxg6 {[%emt 0:00:00]} 15. Qxe4 {[%emt 0:01:35]} Qe8 {[%emt 0:00:00]} 16. Bb6 {[%emt 0:07:48]} d5 {[%emt 0:00:00]} 17. Qd3 {[%emt 0:03:01]} Qf7 {[%emt 0:00:00]} 18. Rde1 {[%emt 0:04:52]} Bd7 {[%emt 0:00:00]} 19. Rf3 {[%emt 0:03:32]} Bd6 {[%emt 0:00:00]} 20. Bd4 {[%emt 0:01:58]} Qf5 {[%emt 0:00:00]} 21. Qe2 {[%emt 0:04:14]} Rac8 {[%emt 0:00:00]} 22. Be5 {[%emt 0:02:53]} Bc5 {[%emt 0:00:00]} 23. Rg3 {[%emt 0:01:03]} Be7 {[%emt 0:00:00]} 24. Rf3 {[%emt 0:07:02]} Bc6 {[%emt 0:00:00]} 25. Bd4 {[%emt 0:00:29]} Bd7 {[%emt 0:00:00]} 26. h3 {[%emt 0:01:22]} Bd6 {[%emt 0:00:00]} 27. Be5 {[%emt 0:04:37]} Bxe5 {[%emt 0:00:00]} 28. fxe5 {[%emt 0:00:20]} Qg5 {[%emt 0:00:00]} 29. Ref1 {[%emt 0:02:22]} Rf5 {[%emt 0:00:00]} 30. Rxf5 {[%emt 0:02:06]} gxf5 {[%emt 0:00:00]} 31. Qf2 {[%emt 0:05:44]} Rc4 {[%emt 0:00:00]} 32. Kh2 {[%emt 0:07:26]} f4 {[%emt 0:00:00]} 33. Re1 {[%emt 0:01:03]} Bc6 {[%emt 0:00:22]} 34. Re2 {[%emt 0:02:17]} Qf5 {[%emt 0:01:57]} 35. a3 {[%emt 0:08:13]} g5 {[%emt 0:02:28]} 36. Qb6 {[%emt 0:00:41]} d4 {[%emt 0:02:02]} 37. Qd8+ {[%emt 0:00:44]} Kg7 {[%emt 0:00:30]} 38. Nd1 {[%emt 0:00:39]} Rxc2 {[%emt 0:01:20]} 39. Qf6+ {[%emt 0:00:38]} Qxf6 {[%emt 0:00:53]} 40. exf6+ {[%emt 0:00:05]} Kxf6 {[%emt 0:00:14]} 41. Rxc2 {[%emt 0:30:30]} e5 {[%emt 0:30:23]} 42. Nf2 {[%emt 0:02:48]} Ke6 {[%emt 0:00:00]} 43. b4 {[%emt 0:00:00]} Kd6 {[%emt 0:00:00]} 44. g3 {[%emt 0:00:00]} f3 {[%emt 0:00:00]} 45. h4 {[%emt 0:00:00]} gxh4 {[%emt 0:00:00]} 46. gxh4 {[%emt 0:00:00]} b6 {[%emt 0:00:00]} 47. Rxc6+ {[%emt 0:00:00]} Kxc6 {[%emt 0:00:00]} 48. h5 {[%emt 0:00:00]} Kd5 {[%emt 0:00:00]} 49. h6 {[%emt 0:00:00]} e4 {[%emt 0:00:00]} 50. Kg3 {[%emt 0:00:00]} e3 {[%emt 0:00:00]} 51. Kxf3 {[%emt 0:00:00]} 1-0